Workbook

Sheet 例題24b １次元拡散円筒座標伴一次反応
A1: 微分方程式数 | B1: 2 | F1: 定数 | J1: (dcA/dy) | K1: 2πRDABcA'=
A2: y= | B2: cA | C2: g | F2: k1= | G2: 2.6 | H2: /s | K2: mol/s
A3: 0.00145 | B3: 0.04241937409 | C3: 0.0002963508587 | F3: DAB= | G3: 7e-07 | H3: m2/s | J3: =(B12-B13)/A13 -> 280.836536 | K3: =2*3.14*G4*G3*J3 -> 1.851836118e-06
B4: cA'= | C4: g'= | F4: R= | G4: 0.0015 | H4: m
A5: 微分方程式→ | B5: =-C3/(G4-A3) -> -5.927017175 | C5: =-(G4-A3)*(G2*B3)/G3 -> -7.877883759 | K5: πR^2k1cAs[mol/s]=
K6: =3.14*G4^2*G2*B12 -> 3.49011e-06
A7: 積分区間y=[a, | B7: 0
A8: b] | B8: 0.00145 | K8: η= | M8: 解析解
A9: 積分刻み幅Δy | B9: 5e-05 | K9: =K3/K6 -> 0.5305953447 | M9: √(k1/DAB)= | N9: =SQRT(G2/G3) -> 1927.248223
A10: 計算結果
A11: y[m] | B11: cA[mol/m3] | C11: g | K11: φ= | M11: r | N11: cA/cAs | O11: cA | P11: y
A12: 0 | B12: 0.19 | C12: 0.4398 | F12: ←初期値 | K12: =(G4/2)*(G2/G3)^0.5 -> 1.445436167 | M12: =$G$4-A12 -> 0.0015 | N12: =BESSELI(M12*$N$9,0)/BESSELI($G$4*$N$9,0) -> 1 | O12: =N12*$B$12 -> 0.19 | P12: =$M$12-M12 -> 0
A13: 5e-05 | B13: 0.1759581732 | C13: 0.3897898574 | M13: =$G$4-A16 -> 0.0013 | N13: 0.7390575366 | O13: 0.140420932 | P13: 0.0002
A14: 0.0001 | B14: 0.1630843999 | C14: 0.3450270869 | M14: =$G$4-A20 -> 0.0011 | N14: 0.5551499782 | O14: 0.1054784959 | P14: 0.0004
A15: 0.00015 | B15: 0.1512827311 | C15: 0.3049771565 | M15: =$G$4-A24 -> 0.0009 | N15: 0.4263989788 | O15: 0.08101580597 | P15: 0.0006
A16: 0.0002 | B16: 0.1404654952 | C16: 0.2691591819 | M16: =$G$4-A28 -> 0.0007 | N16: 0.337691101 | O16: 0.06416130919 | P16: 0.0008
A17: 0.00025 | B17: 0.1305525971 | C17: 0.2371406545 | M17: =$G$4-A32 -> 0.0005 | N17: 0.2787456992 | O17: 0.05296168285 | P17: 0.001
A18: 0.0003 | B18: 0.1214708801 | C18: 0.2085326876 | M18: =$G$4-A36 -> 0.0003 | N18: 0.2428088949 | O18: 0.04613369002 | P18: 0.0012
A19: 0.00035 | B19: 0.1131535434 | C19: 0.1829857321 | M19: =$G$4-A40 -> 0.0001 | N19: 0.2258003946 | O19: 0.04290207498 | P19: 0.0014
A20: 0.0004 | B20: 0.1055396113 | C20: 0.1601857156 | M20: 0 | N20: 0.2237181852 | O20: 0.04250645518 | P20: 0.0015
A21: 0.00045 | B21: 0.09857344901 | C21: 0.1398505647
A22: 0.0005 | B22: 0.09220432206 | C22: 0.1217270729
A23: 0.00055 | B23: 0.08638599467 | C23: 0.1055880829
A24: 0.0006 | B24: 0.0810763643 | C24: 0.09122995061
A25: 0.00065 | B25: 0.07623712918 | C25: 0.07847026718
A26: 0.0007 | B26: 0.07183348597 | C26: 0.06714581184
A27: 0.00075 | B27: 0.06783385517 | C27: 0.0571107159
A28: 0.0008 | B28: 0.06420963158 | C28: 0.0482348174
A29: 0.00085 | B29: 0.06093495784 | C29: 0.04040218893
A30: 0.0009 | B30: 0.05798651869 | C30: 0.03350982303
A31: 0.00095 | B31: 0.0553433537 | C31: 0.02746646106
A32: 0.001 | B32: 0.0529866861 | C32: 0.02219155273
A33: 0.00105 | B33: 0.05089976456 | C33: 0.01761433539
A34: 0.0011 | B34: 0.04906771363 | C34: 0.01367302279
A35: 0.00115 | B35: 0.04747738583 | C35: 0.0103140946
A36: 0.0012 | B36: 0.04611720159 | C36: 0.007491678503
A37: 0.00125 | B37: 0.04497694776 | C37: 0.005167017962
A38: 0.0013 | B38: 0.04404745921 | C38: 0.00330801844
A39: 0.00135 | B39: 0.04331995587 | C39: 0.001888865021
A40: 0.0014 | B40: 0.04278413734 | C40: 0.0008897010007
A41: 0.00145 | B41: 0.04241941358 | C41: 0.0002963434105
L47: 表面濃度勾配からのη（普通の定義）
L48: =K3/K6 -> 0.5305953447
L49: 濃度積分値からのη
L50: =I48/K6 -> 0
I52: RAp[mol/m3-s]
I53: =I46*G2 -> 0

Sheet Bessel関数
B1: 0次修正Bessel関数 | C1: 1次修正Bessel関数
A2: x | B2: I0(x) | C2: I1(x) | D2: I1/I0 | E2: I1(x)/I1 (R )
A3: 0 | B3: =BESSELI(A3,0) -> 1 | C3: =BESSELI(A3,1) -> 0 | D3: =C3/B3 -> 0 | E3: =B3/$B$17 -> 0.2405408666
A4: 0.2 | B4: =BESSELI(A4,0) -> 1.010025022 | C4: 0.1005008339 | D4: 0.09950331097 | E4: =B4/$B$17 -> 0.2429522941
A5: 0.4 | B5: 1.040401763 | C5: 0.2040267545 | D5: 0.1961038147 | E5: 0.2502591417
A6: 0.6 | B6: 1.092045331 | C6: 0.3137040224 | D6: 0.2872628209 | E6: 0.2626815304
A7: 0.8 | B7: 1.166514885 | C7: 0.4328647972 | D7: 0.3710752454 | E7: 0.2805945014
A8: 1 | B8: 1.266065848 | C8: 0.5651590976 | D8: 0.4463899713 | E8: 0.3045405763
A9: 1.2 | B9: 1.393725572 | C9: 0.7146779363 | D9: 0.5127823947 | E9: 0.3352479569
A10: 1.4 | B10: 1.553395106 | C10: 0.8860919794 | D10: 0.5704227959 | E10: 0.3736550049
A11: 1.6 | B11: 1.749980655 | C11: 1.084810637 | D11: 0.6198986449 | E11: 0.4209418634
A12: 1.8 | B12: 1.98955937 | C12: 1.317167234 | D12: 0.6620396727 | E12: 0.4785703349
A13: 2 | B13: 2.279585307 | C13: 1.590636857 | D13: 0.6977746576 | E13: 0.5483334253
A14: 2.2 | B14: 2.629142868 | C14: 1.91409465 | D14: 0.7280299118 | E14: 0.6324163038
A15: 2.4 | B15: 3.049256676 | C15: 2.298123809 | D15: 0.7536668945 | E15: 0.7334708433
A16: 2.6 | B16: 3.553268941 | C16: 2.755384338 | D16: 0.7754505452 | E16: 0.8547063904
A17: 2.8 | B17: 4.157297735 | C17: 3.301055823 | D17: 0.7940388283 | E17: 1
D26: b | E26: J0(b)
A27: J0(b)=0の解 | D27: 0 | E27: =BESSELJ(D27,0) -> 1.000000003
A28: b1 | B28: 2.4048 | D28: 0.5 | E28: =BESSELJ(D28,0) -> 0.9384698074
A29: b2 | B29: 5.5201 | D29: 1 | E29: 0.7651976838
A30: b3 | B30: 8.6537 | D30: 1.5 | E30: 0.5118276712
A31: b4 | B31: 11.7916 | D31: 1.5708 | E31: 0.4719991338
A32: b5 | B32: 14.9309 | D32: 2.2 | E32: 0.1103622695
A33: b6 | B33: 18.0711 | D33: 2.3 | E33: 0.05553978658
D34: 2.4 | E34: 0.002507684757
D35: 2.6 | E35: -0.09680495464
D36: 2.8 | E36: -0.1850360352
D37: 3 | E37: -0.2600519577
D38: 3.2 | E38: -0.3201881723
D39: 3.4 | E39: -0.3642955983
D40: 3.6 | E40: -0.3917689835
D41: 3.8 | E41: -0.4025564083
D42: 4 | E42: -0.3971498072
D43: 4.2 | E43: -0.376557052
D44: 4.4 | E44: -0.3422567891
D45: 4.6 | E45: -0.2961378176
D46: 4.8 | E46: -0.2404253298
D47: 5 | E47: -0.1775967741
D48: 5.2 | E48: -0.1102904415
D49: 5.4 | E49: -0.04121010092
D50: 5.6 | E50: 0.02697088698
D51: 5.8 | E51: 0.09170257069
D52: 6 | E52: 0.1506452595
D53: 6.2 | E53: 0.2017472231
D54: 6.4 | E54: 0.2433106031
D55: 6.6 | E55: 0.2740433587
D56: 6.8 | E56: 0.2930956033
D57: 7 | E57: 0.3000792736
D58: 7.2 | E58: 0.2950706954
D59: 7.4 | E59: 0.2785962341
D60: 7.6 | E60: 0.2516018327
D61: 7.8 | E61: 0.2154078104
D62: 8 | E62: 0.1716508073
D63: 8.2 | E63: 0.1222153019
D64: 8.4 | E64: 0.06915726181
D65: 8.6 | E65: 0.01462299143
D66: 8.8 | E66: -0.03923380303
D67: 9 | E67: -0.09033361104
